[Event "GER-chW Blitz 2019"]
[Site "Magdeburg"]
[Date "2019.05.25"]
[Round "3.11"]
[White "Kushka, Alena"]
[Black "Mader, Lena"]
[Result "1-0"]
[ECO "E77"]
[WhiteElo "2148"]
[BlackElo "1839"]
[Annotator "NA"]
[PlyCount "54"]
[EventDate "2019.05.25"]
[EventType "tourn"]
[EventCountry "GER"]
[SourceTitle "playchess.com"]
[Source "ChessBase"]
[SourceQuality "1"]
[TimeControl "180+2"]

1. c4 {[%emt 0:00:00]} Nf6 {[%emt 0:00:00]} 2. d4 {[%emt 0:00:01]} g6 {[%emt 0:00:05]} 3. Nc3 {[%emt 0:00:01]} Bg7 {[%emt 0:00:01]} 4. e4 {[%emt 0:00:01]} d6 {[%emt 0:00:01]} 5. f4 {[%emt 0:00:02]} O-O {[%emt 0:00:02]} 6. Nf3 {[%emt 0:00:01]} c5 {[%emt 0:00:06]} 7. d5 {[%emt 0:00:01]} a6 {[%emt 0:00:30]} 8. a4 {[%emt 0:00:03]} Nbd7 {[%emt 0:00:20]} 9. Bd3 {[%emt 0:00:02]} Nb6 {[%emt 0:00:29]} 10. O-O {[%emt 0:00:14]} e5 {[%emt 0:00:06]} 11. dxe6 {[%emt 0:00:02]} Bxe6 {[%emt 0:00:01]} 12. Qe2 {[%emt 0:00:16]} Qc7 {[%emt 0:00:10]} 13. a5 {[%emt 0:00:13]} Nbd7 {[%emt 0:00:02]} 14. f5 {[%emt 0:00:04]} gxf5 {[%emt 0:00:24]} 15. exf5 {[%emt 0:00:01]} Rae8 {[%emt 0:00:16]} 16. fxe6 {[%emt 0:00:04]} Rxe6 {[%emt 0:00:01]} 17. Qf2 {[%emt 0:00:21]} Ne5 {[%emt 0:00:33]} 18. Nxe5 {[%emt 0:00:09]} dxe5 {[%emt 0:00:00]} 19. Qh4 {[%emt 0:00:05]} e4 {[%emt 0:00:16]} 20. Nxe4 {[%emt 0:00:34]} Nxe4 21. Bxe4 {[%emt 0:00:01]} Rxe4 {[%emt 0:00:13]} 22. Qxe4 {[%emt 0:00:02]} Bd4+ {[%emt 0:00:04]} 23. Kh1 {[%emt 0:00:01]} Kh8 {[%emt 0:00:03]} 24. Bf4 {[%emt 0:00:06]} Qd7 25. Be5+ Bxe5 26. Qxe5+ Kg8 27. Rf3 Re8 1-0

[Event "GER-chW Blitz 2019"]
[Site "Magdeburg"]
[Date "2019.05.25"]
[Round "3.12"]
[White "Schulze, Lara"]
[Black "Braje, Monika"]
[Result "1-0"]
[ECO "B01"]
[WhiteElo "2160"]
[BlackElo "1781"]
[Annotator "NA"]
[PlyCount "50"]
[EventDate "2019.05.25"]
[EventType "tourn"]
[EventCountry "GER"]
[SourceTitle "playchess.com"]
[Source "ChessBase"]
[SourceQuality "1"]
[TimeControl "180+2"]

1. e4 {[%emt 0:00:00]} d5 {[%emt 0:00:01]} 2. exd5 {[%emt 0:00:01]} Nf6 {[%emt 0:00:02]} 3. d4 {[%emt 0:00:03]} Nxd5 {[%emt 0:00:01]} 4. Nf3 {[%emt 0:00:01]} g6 {[%emt 0:00:06]} 5. c4 {[%emt 0:00:01]} Nb6 {[%emt 0:00:00]} 6. Nc3 {[%emt 0:00:01]} Bg7 {[%emt 0:00:01]} 7. h3 {[%emt 0:00:07]} e6 {[%emt 0:00:01]} 8. Bg5 {[%emt 0:00:12]} Bf6 {[%emt 0:00:34]} 9. Bh6 {[%emt 0:00:32]} a6 {[%emt 0:00:01]} 10. Ne4 {[%emt 0:00:16]} Be7 {[%emt 0:00:06]} 11. Bg7 {[%emt 0:00:30]} Rg8 {[%emt 0:00:01]} 12. Bh6 {[%emt 0:00:01]} Bd7 {[%emt 0:00:26]} 13. Be2 {[%emt 0:00:13]} Bc6 {[%emt 0:00:02]} 14. Neg5 {[%emt 0:00:20]} N8d7 {[%emt 0:00:20]} 15. O-O {[%emt 0:00:10]} Nf8 {[%emt 0:00:23]} 16. Qd2 {[%emt 0:00:16]} f6 {[%emt 0:00:22]} 17. Bxf8 {[%emt 0:00:02]} fxg5 {[%emt 0:00:01]} 18. Bxe7 {[%emt 0:00:02]} Qxe7 {[%emt 0:00:01]} 19. Qxg5 {[%emt 0:00:04]} Qxg5 {[%emt 0:00:46]} 20. Nxg5 {[%emt 0:00:01]} Ke7 {[%emt 0:00:02]} 21. Nxh7 {[%emt 0:00:14]} Rg7 {[%emt 0:00:05]} 22. Ng5 {[%emt 0:00:01]} Rh8 {[%emt 0:00:05]} 23. b3 {[%emt 0:00:05]} Nd7 {[%emt 0:00:07]} 24. Bg4 {[%emt 0:00:05]} Nf8 {[%emt 0:00:07]} 25. Rfe1 {[%emt 0:00:01]} Kf6 1-0

[Event "GER-chW Blitz 2019"]
[Site "Magdeburg"]
[Date "2019.05.25"]
[Round "4.1"]
[White "Roesler, Hannah Clara Hed"]
[Black "Braje, Monika"]
[Result "0-1"]
[ECO "B13"]
[WhiteElo "1619"]
[BlackElo "1781"]
[Annotator "NA"]
[PlyCount "43"]
[EventDate "2019.05.25"]
[EventType "tourn"]
[EventCountry "GER"]
[SourceTitle "playchess.com"]
[Source "ChessBase"]
[SourceQuality "1"]
[TimeControl "180+2"]

1. e4 {[%emt 0:00:00]} d5 {[%emt 0:00:00]} 2. exd5 {[%emt 0:00:00]} Nf6 {[%emt 0:00:00]} 3. c4 {[%emt 0:00:01]} c6 {[%emt 0:00:00]} 4. d4 {[%emt 0:00:01]} cxd5 {[%emt 0:00:01]} 5. Nc3 {[%emt 0:00:02]} dxc4 {[%emt 0:00:01]} 6. Bxc4 {[%emt 0:00:02]} e6 {[%emt 0:00:01]} 7. Nf3 {[%emt 0:00:07]} Be7 {[%emt 0:00:01]} 8. O-O {[%emt 0:00:09]} O-O {[%emt 0:00:02]} 9. Re1 {[%emt 0:00:09]} a6 {[%emt 0:00:01]} 10. Bg5 {[%emt 0:00:41]} b5 {[%emt 0:00:03]} 11. Bb3 {[%emt 0:00:12]} Bb7 {[%emt 0:00:01]} 12. Bc2 {[%emt 0:00:29]} h6 {[%emt 0:00:01]} 13. Bh4 {[%emt 0:00:04]} Nbd7 {[%emt 0:00:09]} 14. d5 {[%emt 0:00:17]} Nc5 15. dxe6 {[%emt 0:00:09]} Nxe6 {[%emt 0:00:36]} 16. Qe2 {[%emt 0:00:11]} Qc7 {[%emt 0:00:13]} 17. Bg3 {[%emt 0:00:08]} Qc6 {[%emt 0:00:02]} 18. Rac1 {[%emt 0:00:07]} Nd4 {[%emt 0:00:11]} 19. Qxe7 {[%emt 0:00:30]} Nxf3+ {[%emt 0:00:01]} 20. Kh1 {[%emt 0:00:10]} Nxe1 {[%emt 0:00:02]} 21. f3 {[%emt 0:00:10]} Nxc2 {[%emt 0:00:02]} 22. Rxc2 {[%emt 0:00:00]} 0-1

[Event "GER-chW Blitz 2019"]
[Site "Magdeburg"]
[Date "2019.05.25"]
[Round "4.2"]
[White "Mader, Lena"]
[Black "Schulze, Lara"]
[Result "1/2-1/2"]
[ECO "A21"]
[WhiteElo "1839"]
[BlackElo "2160"]
[Annotator "NA"]
[PlyCount "98"]
[EventDate "2019.05.25"]
[EventType "tourn"]
[EventCountry "GER"]
[SourceTitle "playchess.com"]
[Source "ChessBase"]
[SourceQuality "1"]
[TimeControl "180+2"]

1. c4 {[%emt 0:00:00]} e5 {[%emt 0:00:00]} 2. Nc3 {[%emt 0:00:00]} Bb4 {[%emt 0:00:01]} 3. Nf3 {[%emt 0:00:04]} Bxc3 {[%emt 0:00:15]} 4. bxc3 {[%emt 0:00:08]} d6 {[%emt 0:00:08]} 5. d3 {[%emt 0:00:13]} Ne7 {[%emt 0:00:10]} 6. g3 {[%emt 0:00:11]} O-O {[%emt 0:00:03]} 7. Bg2 {[%emt 0:00:01]} f5 {[%emt 0:00:11]} 8. e3 {[%emt 0:00:02]} Nbc6 {[%emt 0:00:14]} 9. O-O {[%emt 0:00:02]} Kh8 {[%emt 0:00:01]} 10. a4 {[%emt 0:00:09]} a5 {[%emt 0:00:03]} 11. Rb1 {[%emt 0:00:12]} b6 {[%emt 0:00:02]} 12. d4 {[%emt 0:00:50]} Ba6 {[%emt 0:00:17]} 13. d5 {[%emt 0:00:23]} Nb8 {[%emt 0:00:06]} 14. Qb3 {[%emt 0:00:02]} Nd7 {[%emt 0:00:02]} 15. Nd2 {[%emt 0:00:08]} Nc5 {[%emt 0:00:03]} 16. Qa2 {[%emt 0:00:05]} Qd7 {[%emt 0:00:03]} 17. Qc2 {[%emt 0:00:29]} Qxa4 {[%emt 0:00:04]} 18. Qxa4 Nxa4 {[%emt 0:00:01]} 19. Bb2 {[%emt 0:00:07]} Nc5 {[%emt 0:00:11]} 20. Ba3 {[%emt 0:00:00]} Nd7 {[%emt 0:00:23]} 21. Rb2 {[%emt 0:00:04]} e4 {[%emt 0:00:05]} 22. Rfb1 {[%emt 0:00:01]} Ne5 {[%emt 0:00:09]} 23. Bf1 {[%emt 0:00:01]} Ng8 {[%emt 0:00:12]} 24. h3 {[%emt 0:00:09]} Nf6 {[%emt 0:00:02]} 25. Kh2 {[%emt 0:00:03]} h5 {[%emt 0:00:04]} 26. Rb3 {[%emt 0:00:13]} Nfd7 {[%emt 0:00:05]} 27. R3b2 {[%emt 0:00:02]} Nd3 {[%emt 0:00:10]} 28. Bxd3 {[%emt 0:00:06]} exd3 {[%emt 0:00:01]} 29. Kg2 {[%emt 0:00:02]} Ne5 {[%emt 0:00:01]} 30. Nf3 {[%emt 0:00:03]} Nxc4 {[%emt 0:00:01]} 31. Rb3 {[%emt 0:00:05]} Nxa3 {[%emt 0:00:04]} 32. Rxa3 {[%emt 0:00:01]} Bc4 {[%emt 0:00:01]} 33. Nd2 {[%emt 0:00:05]} Bxd5+ {[%emt 0:00:01]} 34. Kg1 {[%emt 0:00:02]} a4 {[%emt 0:00:36]} 35. c4 {[%emt 0:00:01]} Be4 {[%emt 0:00:03]} 36. f3 {[%emt 0:00:01]} Bc6 {[%emt 0:00:01]} 37. Rxd3 {[%emt 0:00:02]} a3 {[%emt 0:00:01]} 38. Nb3 {[%emt 0:00:02]} Bxf3 {[%emt 0:00:06]} 39. Kf2 {[%emt 0:00:02]} Be4 {[%emt 0:00:01]} 40. Ke2 {[%emt 0:00:02]} Bxd3+ {[%emt 0:00:00]} 41. Kxd3 {[%emt 0:00:00]} a2 {[%emt 0:00:03]} 42. Ra1 {[%emt 0:00:01]} Rfe8 {[%emt 0:00:01]} 43. Nd4 {[%emt 0:00:01]} Ra3+ {[%emt 0:00:02]} 44. Kd2 {[%emt 0:00:05]} Raxe3 {[%emt 0:00:01]} 45. Nc6 {[%emt 0:00:01]} Re2+ {[%emt 0:00:02]} 46. Kd3 {[%emt 0:00:01]} R8e3+ {[%emt 0:00:02]} 47. Kd4 {[%emt 0:00:01]} Re4+ {[%emt 0:00:00]} 48. Kd5 {[%emt 0:00:01]} Rd2+ {[%emt 0:00:04]} 49. Nd4 {[%emt 0:00:03]} Rdxd4+ {[%emt 0:00:02]} 1/2-1/2

[Event "GER-chW Blitz 2019"]
[Site "Magdeburg"]
[Date "2019.05.25"]
[Round "4.3"]
[White "Zimmer, Elke"]
[Black "Kushka, Alena"]
[Result "1/2-1/2"]
[ECO "B25"]
[WhiteElo "1926"]
[BlackElo "2148"]
[Annotator "NA"]
[PlyCount "125"]
[EventDate "2019.05.25"]
[EventType "tourn"]
[EventCountry "GER"]
[SourceTitle "playchess.com"]
[Source "ChessBase"]
[SourceQuality "1"]
[TimeControl "180+2"]

1. e4 {[%emt 0:00:00]} c5 {[%emt 0:00:00]} 2. Nc3 {[%emt 0:00:00]} Nc6 {[%emt 0:00:00]} 3. g3 {[%emt 0:00:00]} g6 {[%emt 0:00:02]} 4. Bg2 {[%emt 0:00:01]} Bg7 {[%emt 0:00:02]} 5. d3 {[%emt 0:00:00]} d6 {[%emt 0:00:09]} 6. h3 {[%emt 0:00:04]} Nf6 {[%emt 0:00:01]} 7. Nf3 {[%emt 0:00:01]} O-O {[%emt 0:00:03]} 8. Be3 {[%emt 0:00:01]} a6 {[%emt 0:00:06]} 9. Qd2 {[%emt 0:00:01]} Re8 {[%emt 0:00:06]} 10. Bh6 {[%emt 0:00:02]} Bh8 {[%emt 0:00:03]} 11. O-O {[%emt 0:00:03]} b5 {[%emt 0:00:03]} 12. Rfe1 {[%emt 0:00:12]} Bb7 {[%emt 0:00:08]} 13. Rab1 {[%emt 0:00:11]} Qd7 {[%emt 0:00:21]} 14. Ne2 {[%emt 0:00:04]} e5 {[%emt 0:00:31]} 15. g4 {[%emt 0:00:04]} d5 {[%emt 0:00:07]} 16. exd5 {[%emt 0:00:41]} Nxd5 {[%emt 0:00:01]} 17. Ng3 {[%emt 0:00:07]} Nd4 {[%emt 0:00:39]} 18. Nxd4 {[%emt 0:00:02]} exd4 {[%emt 0:00:09]} 19. Rxe8+ {[%emt 0:00:00]} Rxe8 {[%emt 0:00:02]} 20. Re1 {[%emt 0:00:01]} Bc6 {[%emt 0:00:36]} 21. Rxe8+ {[%emt 0:00:05]} Qxe8 {[%emt 0:00:03]} 22. Qe2 {[%emt 0:00:01]} Qxe2 {[%emt 0:00:04]} 23. Nxe2 {[%emt 0:00:01]} Nb4 {[%emt 0:00:06]} 24. Bxc6 {[%emt 0:00:03]} Nxc6 {[%emt 0:00:01]} 25. a3 {[%emt 0:00:00]} Be5 {[%emt 0:00:05]} 26. f4 {[%emt 0:00:03]} Bc7 {[%emt 0:00:02]} 27. Kg2 {[%emt 0:00:01]} f6 {[%emt 0:00:03]} 28. Kf3 {[%emt 0:00:04]} Kf7 {[%emt 0:00:04]} 29. c3 {[%emt 0:00:04]} dxc3 {[%emt 0:00:05]} 30. bxc3 {[%emt 0:00:01]} Ne7 {[%emt 0:00:02]} 31. d4 {[%emt 0:00:17]} cxd4 {[%emt 0:00:04]} 32. Nxd4 {[%emt 0:00:07]} Ng8 {[%emt 0:00:04]} 33. g5 {[%emt 0:00:01]} Bd6 {[%emt 0:00:04]} 34. Nc6 {[%emt 0:00:16]} Nxh6 {[%emt 0:00:04]} 35. gxh6 {[%emt 0:00:01]} Bxa3 {[%emt 0:00:02]} 36. Nb8 {[%emt 0:00:00]} a5 {[%emt 0:00:02]} 37. Nd7 {[%emt 0:00:03]} b4 {[%emt 0:00:01]} 38. cxb4 {[%emt 0:00:03]} axb4 {[%emt 0:00:02]} 39. Ke2 {[%emt 0:00:04]} b3 {[%emt 0:00:02]} 40. Kd2 {[%emt 0:00:01]} Bd6 {[%emt 0:00:03]} 41. Kc3 {[%emt 0:00:04]} Bxf4 {[%emt 0:00:01]} 42. Kxb3 {[%emt 0:00:00]} Bxh6 {[%emt 0:00:02]} 43. Kc4 {[%emt 0:00:01]} Ke6 {[%emt 0:00:00]} 44. Nc5+ {[%emt 0:00:01]} Kf5 {[%emt 0:00:01]} 45. Kd5 {[%emt 0:00:00]} g5 {[%emt 0:00:02]} 46. Ne6 {[%emt 0:00:03]} g4 {[%emt 0:00:02]} 47. hxg4+ {[%emt 0:00:01]} Kxg4 {[%emt 0:00:01]} 48. Ke4 {[%emt 0:00:03]} f5+ {[%emt 0:00:01]} 49. Kd3 {[%emt 0:00:01]} Bf4 {[%emt 0:00:02]} 50. Ke2 {[%emt 0:00:03]} h5 {[%emt 0:00:01]} 51. Kf2 {[%emt 0:00:01]} Be5 {[%emt 0:00:03]} 52. Kg2 {[%emt 0:00:07]} h4 {[%emt 0:00:04]} 53. Nc5 {[%emt 0:00:01]} h3+ {[%emt 0:00:03]} 54. Kh1 {[%emt 0:00:01]} Kf3 {[%emt 0:00:01]} 55. Nd3 {[%emt 0:00:04]} Bb8 {[%emt 0:00:02]} 56. Ne1+ {[%emt 0:00:02]} Ke2 {[%emt 0:00:02]} 57. Nc2 {[%emt 0:00:01]} Ba7 {[%emt 0:00:02]} 58. Nb4 {[%emt 0:00:01]} f4 {[%emt 0:00:02]} 59. Nd5 {[%emt 0:00:01]} f3 {[%emt 0:00:04]} 60. Nf4+ {[%emt 0:00:11]} Kf1 {[%emt 0:00:05]} 61. Nxh3 {[%emt 0:00:02]} Bb8 {[%emt 0:00:01]} 62. Ng1 {[%emt 0:00:10]} f2 {[%emt 0:00:04]} 63. Nh3 {[%emt 0:00:07]} 1/2-1/2

[Event "GER-chW Blitz 2019"]
[Site "Magdeburg"]
[Date "2019.05.25"]
[Round "4.4"]
[White "Kopylov, Luba"]
[Black "Ries, Jutta"]
[Result "0-1"]
[ECO "A57"]
[WhiteElo "2078"]
[BlackElo "2017"]
[Annotator "NA"]
[PlyCount "40"]
[EventDate "2019.05.25"]
[EventType "tourn"]
[EventCountry "GER"]
[SourceTitle "playchess.com"]
[Source "ChessBase"]
[SourceQuality "1"]
[TimeControl "180+2"]

1. d4 {[%emt 0:00:01]} Nf6 {[%emt 0:00:00]} 2. c4 {[%emt 0:00:01]} c5 {[%emt 0:00:00]} 3. d5 {[%emt 0:00:01]} b5 {[%emt 0:00:01]} 4. cxb5 {[%emt 0:00:02]} a6 {[%emt 0:00:01]} 5. b6 {[%emt 0:00:01]} Bb7 {[%emt 0:00:12]} 6. Nc3 {[%emt 0:00:02]} e6 {[%emt 0:00:07]} 7. e4 {[%emt 0:00:02]} Qxb6 {[%emt 0:00:14]} 8. Nf3 {[%emt 0:00:20]} exd5 {[%emt 0:00:09]} 9. e5 {[%emt 0:00:13]} Ne4 {[%emt 0:00:21]} 10. Nxd5 {[%emt 0:00:10]} Qa5+ {[%emt 0:00:05]} 11. Nc3 {[%emt 0:00:31]} Nxc3 {[%emt 0:00:07]} 12. Qd2 {[%emt 0:00:03]} Bxf3 {[%emt 0:00:33]} 13. gxf3 {[%emt 0:00:05]} Nc6 {[%emt 0:00:01]} 14. bxc3 {[%emt 0:00:38]} Nxe5 {[%emt 0:00:04]} 15. Qe3 {[%emt 0:00:04]} Bd6 {[%emt 0:00:42]} 16. f4 {[%emt 0:00:05]} O-O {[%emt 0:00:02]} 17. fxe5 {[%emt 0:00:02]} Bxe5 {[%emt 0:00:15]} 18. Bd2 {[%emt 0:00:26]} Rfe8 {[%emt 0:00:06]} 19. Be2 {[%emt 0:00:18]} d5 {[%emt 0:00:10]} 20. Rg1 {[%emt 0:00:18]} Qc7 {[%emt 0:00:01]} 0-1

[Event "GER-chW Blitz 2019"]
[Site "Magdeburg"]
[Date "2019.05.25"]
[Round "4.5"]
[White "Gheng, Simona"]
[Black "Lubbe, Melanie"]
[Result "0-1"]
[ECO "B20"]
[WhiteElo "1991"]
[BlackElo "2278"]
[Annotator "NA"]
[PlyCount "114"]
[EventDate "2019.05.25"]
[EventType "tourn"]
[EventCountry "GER"]
[SourceTitle "playchess.com"]
[Source "ChessBase"]
[SourceQuality "1"]
[TimeControl "180+2"]

1. e4 {[%emt 0:00:00]} c5 {[%emt 0:00:00]} 2. c4 {[%emt 0:00:01]} Nc6 {[%emt 0:00:00]} 3. Nc3 {[%emt 0:00:01]} g6 {[%emt 0:00:02]} 4. g3 {[%emt 0:00:02]} Bg7 {[%emt 0:00:01]} 5. Bg2 {[%emt 0:00:02]} d6 {[%emt 0:00:01]} 6. Nge2 {[%emt 0:00:02]} e6 {[%emt 0:00:02]} 7. O-O {[%emt 0:00:03]} Nge7 {[%emt 0:00:01]} 8. d3 {[%emt 0:00:00]} Nd4 {[%emt 0:00:01]} 9. Nxd4 {[%emt 0:00:06]} cxd4 {[%emt 0:00:02]} 10. Ne2 {[%emt 0:00:07]} O-O {[%emt 0:00:03]} 11. a3 {[%emt 0:00:01]} a5 {[%emt 0:00:03]} 12. f4 {[%emt 0:00:03]} a4 {[%emt 0:00:09]} 13. b4 {[%emt 0:00:15]} axb3 {[%emt 0:00:02]} 14. Qxb3 {[%emt 0:00:01]} Nc6 {[%emt 0:00:05]} 15. Bd2 {[%emt 0:00:04]} Na5 {[%emt 0:00:17]} 16. Bxa5 {[%emt 0:00:02]} Rxa5 {[%emt 0:00:02]} 17. Rfb1 {[%emt 0:00:11]} Qc7 {[%emt 0:00:03]} 18. Qb6 {[%emt 0:00:07]} Qc5 {[%emt 0:00:23]} 19. Rb5 {[%emt 0:00:23]} Rxb5 {[%emt 0:00:17]} 20. Qxb5 {[%emt 0:00:02]} e5 {[%emt 0:00:08]} 21. fxe5 {[%emt 0:00:06]} Bxe5 {[%emt 0:00:08]} 22. Nf4 {[%emt 0:00:06]} Qxb5 {[%emt 0:00:51]} 23. cxb5 {[%emt 0:00:01]} Bd7 {[%emt 0:00:02]} 24. Rb1 {[%emt 0:00:18]} Ra8 {[%emt 0:00:02]} 25. Rb3 {[%emt 0:00:01]} Ra5 {[%emt 0:00:05]} 26. b6 {[%emt 0:00:02]} Ba4 {[%emt 0:00:10]} 27. Rb4 {[%emt 0:00:11]} Bc6 {[%emt 0:00:02]} 28. Rb3 {[%emt 0:00:02]} Kf8 {[%emt 0:00:12]} 29. Ne2 {[%emt 0:00:16]} Ke7 {[%emt 0:00:05]} 30. Bh3 {[%emt 0:00:08]} Ra4 {[%emt 0:00:03]} 31. Kf2 {[%emt 0:00:10]} Bg7 {[%emt 0:00:01]} 32. Nc1 {[%emt 0:00:01]} Bh6 {[%emt 0:00:02]} 33. Na2 {[%emt 0:00:02]} Be3+ {[%emt 0:00:03]} 34. Ke2 {[%emt 0:00:02]} Bd7 {[%emt 0:00:13]} 35. Bxd7 {[%emt 0:00:04]} Kxd7 {[%emt 0:00:01]} 36. Nb4 {[%emt 0:00:00]} Ra5 {[%emt 0:00:11]} 37. Nc2 {[%emt 0:00:03]} Rh5 {[%emt 0:00:05]} 38. h4 {[%emt 0:00:02]} Rc5 {[%emt 0:00:05]} 39. Nxe3 {[%emt 0:00:02]} dxe3 {[%emt 0:00:01]} 40. Kxe3 {[%emt 0:00:00]} Rc1 {[%emt 0:00:01]} 41. Kd4 {[%emt 0:00:05]} Kc6 {[%emt 0:00:01]} 42. Rc3+ {[%emt 0:00:01]} Rxc3 {[%emt 0:00:01]} 43. Kxc3 {[%emt 0:00:01]} Kxb6 {[%emt 0:00:01]} 44. Kb4 {[%emt 0:00:00]} Kc6 {[%emt 0:00:01]} 45. d4 {[%emt 0:00:01]} f6 {[%emt 0:00:02]} 46. d5+ {[%emt 0:00:02]} Kb6 {[%emt 0:00:01]} 47. a4 {[%emt 0:00:01]} Ka6 {[%emt 0:00:03]} 48. g4 {[%emt 0:00:02]} h6 {[%emt 0:00:03]} 49. a5 {[%emt 0:00:17]} b6 {[%emt 0:00:01]} 50. axb6 {[%emt 0:00:02]} Kxb6 {[%emt 0:00:00]} 51. h5 {[%emt 0:00:02]} g5 {[%emt 0:00:05]} 52. Kc4 {[%emt 0:00:01]} Ka5 {[%emt 0:00:01]} 53. Kd4 {[%emt 0:00:02]} Kb4 54. e5 {[%emt 0:00:04]} fxe5+ {[%emt 0:00:03]} 55. Ke4 {[%emt 0:00:01]} Kc4 {[%emt 0:00:00]} 56. Kf5 {[%emt 0:00:01]} Kxd5 57. Kg6 {[%emt 0:00:00]} e4 {[%emt 0:00:03] Kxg5 [%clk 0:01:03]} 0-1

[Event "GER-chW Blitz 2019"]
[Site "Magdeburg"]
[Date "2019.05.25"]
[Round "4.6"]
[White "Kunze, Kerstin"]
[Black "Fuchs, Judith"]
[Result "1-0"]
[ECO "B15"]
[WhiteElo "2066"]
[BlackElo "2218"]
[Annotator "NA"]
[PlyCount "103"]
[EventDate "2019.05.25"]
[EventType "tourn"]
[EventCountry "GER"]
[SourceTitle "playchess.com"]
[Source "ChessBase"]
[SourceQuality "1"]
[TimeControl "180+2"]

1. e4 {[%emt 0:00:00]} c6 {[%emt 0:00:00]} 2. d4 {[%emt 0:00:00]} d5 {[%emt 0:00:00]} 3. Nc3 {[%emt 0:00:01]} dxe4 {[%emt 0:00:01]} 4. Nxe4 {[%emt 0:00:02]} Nf6 {[%emt 0:00:01]} 5. Nxf6+ exf6 {[%emt 0:00:01]} 6. Nf3 {[%emt 0:00:07]} Bd6 {[%emt 0:00:01]} 7. Bd3 {[%emt 0:00:02]} O-O {[%emt 0:00:02]} 8. O-O {[%emt 0:00:01]} Na6 {[%emt 0:00:01]} 9. h3 {[%emt 0:00:06]} Nc7 {[%emt 0:00:02]} 10. Nd2 {[%emt 0:00:07]} Nd5 {[%emt 0:00:11]} 11. Nc4 {[%emt 0:00:07]} Bc7 {[%emt 0:00:03]} 12. Qf3 {[%emt 0:00:13]} b5 {[%emt 0:00:28]} 13. Ne3 {[%emt 0:00:28]} Qd6 {[%emt 0:00:03]} 14. g3 {[%emt 0:00:14]} Bxh3 {[%emt 0:00:08]} 15. Qh5 {[%emt 0:00:07]} g6 {[%emt 0:00:24]} 16. Qxh3 {[%emt 0:00:01]} Nb4 {[%emt 0:00:06]} 17. Be2 {[%emt 0:00:38]} a5 {[%emt 0:00:23]} 18. c3 {[%emt 0:00:02]} Na6 {[%emt 0:00:00]} 19. Ng4 {[%emt 0:00:08]} h5 {[%emt 0:00:29]} 20. Nh2 {[%emt 0:00:14]} Kg7 {[%emt 0:00:06]} 21. Bf4 {[%emt 0:00:02]} Qe7 {[%emt 0:00:07]} 22. Bxc7 {[%emt 0:00:05]} Qxe2 {[%emt 0:00:07]} 23. Bxa5 {[%emt 0:00:09]} Qxb2 {[%emt 0:00:04]} 24. Qh4 {[%emt 0:00:05]} Qa3 {[%emt 0:00:11]} 25. Bb4 {[%emt 0:00:08]} Nxb4 {[%emt 0:00:01]} 26. cxb4 {[%emt 0:00:01]} Qxb4 {[%emt 0:00:01]} 27. Nf3 {[%emt 0:00:03]} Ra3 {[%emt 0:00:03]} 28. Qe4 {[%emt 0:00:04]} Qc3 {[%emt 0:00:16]} 29. Kg2 {[%emt 0:00:11]} Rd8 {[%emt 0:00:02]} 30. Rac1 {[%emt 0:00:04]} Qb2 {[%emt 0:00:08]} 31. Rxc6 {[%emt 0:00:02]} Rxa2 {[%emt 0:00:19]} 32. Qe7 {[%emt 0:00:03]} Rf8 {[%emt 0:00:04]} 33. Qxf6+ {[%emt 0:00:03]} Kg8 {[%emt 0:00:00]} 34. Qg5 {[%emt 0:00:17]} Qb3 {[%emt 0:00:05]} 35. Ne5 {[%emt 0:00:04]} Qd5+ {[%emt 0:00:01]} 36. Kh2 {[%emt 0:00:09]} Kh7 {[%emt 0:00:10]} 37. Rxg6 {[%emt 0:00:01]} fxg6 38. Qxg6+ Kh8 39. Qg5 Kh7 40. Qxh5+ Kg7 41. Qg5+ Kh7 42. Qh5+ Kg7 43. Qg5+ Kh7 44. Qh5+ Kg7 45. Qg5+ Kh7 46. Kg1 Rh8 47. Qh5+ Kg7 48. Qg5+ Kf8 49. Qf6+ Kg8 50. Qg6+ Kf8 51. Qf5+ Ke7 52. Ng6+ 1-0

[Event "GER-chW Blitz 2019"]
[Site "Magdeburg"]
[Date "2019.05.25"]
[Round "4.7"]
[White "Kreismann, Franziska"]
[Black "Kotyk, Valeriya"]
[Result "0-1"]
[ECO "A57"]
[WhiteElo "1589"]
[BlackElo "1739"]
[Annotator "NA"]
[PlyCount "70"]
[EventDate "2019.05.25"]
[EventType "tourn"]
[EventCountry "GER"]
[SourceTitle "playchess.com"]
[Source "ChessBase"]
[SourceQuality "1"]
[TimeControl "180+2"]

1. d4 {[%emt 0:00:00]} Nf6 {[%emt 0:00:00]} 2. c4 {[%emt 0:00:02]} c5 {[%emt 0:00:02]} 3. d5 {[%emt 0:00:02]} b5 {[%emt 0:00:02]} 4. cxb5 {[%emt 0:00:02]} a6 {[%emt 0:00:02]} 5. Nc3 {[%emt 0:00:02]} axb5 {[%emt 0:00:02]} 6. a3 {[%emt 0:00:02]} b4 {[%emt 0:00:02]} 7. Nb1 {[%emt 0:00:02]} g6 {[%emt 0:00:02]} 8. Bg5 {[%emt 0:00:02]} Bg7 {[%emt 0:00:02]} 9. Nf3 {[%emt 0:00:02]} O-O {[%emt 0:00:02]} 10. Bxf6 {[%emt 0:00:15]} Bxf6 {[%emt 0:00:01]} 11. Qc2 {[%emt 0:00:03]} d6 {[%emt 0:00:10]} 12. e4 {[%emt 0:00:01]} Qb6 {[%emt 0:00:13]} 13. Bc4 {[%emt 0:00:12]} bxa3 {[%emt 0:00:03]} 14. Rxa3 {[%emt 0:00:08]} Rxa3 {[%emt 0:00:02]} 15. bxa3 {[%emt 0:00:01]} Ba6 {[%emt 0:00:09]} 16. O-O {[%emt 0:00:11]} Nd7 {[%emt 0:00:04]} 17. Bxa6 {[%emt 0:00:08]} Qxa6 {[%emt 0:00:01]} 18. a4 {[%emt 0:00:00]} Ra8 {[%emt 0:00:02]} 19. Nc3 {[%emt 0:00:12]} Qc4 {[%emt 0:00:05]} 20. Nd2 {[%emt 0:00:08]} Qxc3 {[%emt 0:00:02]} 21. Qxc3 {[%emt 0:00:03]} Bxc3 {[%emt 0:00:02]} 22. Nf3 {[%emt 0:00:03]} Rxa4 {[%emt 0:00:02]} 23. Rc1 {[%emt 0:00:05]} Bb4 {[%emt 0:00:02]} 24. h4 {[%emt 0:00:05]} Kg7 {[%emt 0:00:03]} 25. g4 {[%emt 0:00:01]} Nf6 {[%emt 0:00:03]} 26. e5 {[%emt 0:00:13]} Nxg4 {[%emt 0:00:05]} 27. exd6 {[%emt 0:00:01]} exd6 {[%emt 0:00:02]} 28. Rc2 {[%emt 0:00:09]} Ne5 {[%emt 0:00:18]} 29. Ng5 {[%emt 0:00:11]} Ba5 {[%emt 0:00:12]} 30. Rb2 {[%emt 0:00:04]} h6 {[%emt 0:00:04]} 31. Nh3 {[%emt 0:00:05]} Rxh4 {[%emt 0:00:03]} 32. Kg2 {[%emt 0:00:02]} Bb4 {[%emt 0:00:02]} 33. Kg3 {[%emt 0:00:05]} Rd4 {[%emt 0:00:01]} 34. Nf4 {[%emt 0:00:05]} g5 {[%emt 0:00:03]} 35. Nh5+ {[%emt 0:00:06]} Kg6 {[%emt 0:00:00]} 0-1